[Event "*** Titled Tuesday Blitz"]
[Site "Chess.com"]
[Date "2021.02.09"]
[Round "10"]
[White "SKLGgonkom"]
[Black "Grimlock_Glasgow"]
[Result "0-1"]
[WhiteElo "2354"]
[BlackElo "2478"]
[TimeControl "180+1"]
[EndTime "11:52:33 PST"]
[Termination "Grimlock_Glasgow won by resignation"]

1. Nf3 {[%clk 0:03:00.9]} 1... d5 {[%clk 0:02:53.1]} 2. g3 {[%clk 0:03:00.3]}
2... Nc6 {[%clk 0:02:51.5]} 3. d4 {[%clk 0:02:59.5]} 3... Bg4 {[%clk 0:02:48.6]}
4. Bg2 {[%clk 0:02:59.6]} 4... Qd7 {[%clk 0:02:48.5]} 5. h3 {[%clk 0:02:58.8]}
5... Bxf3 {[%clk 0:02:47.4]} 6. Bxf3 {[%clk 0:02:59.7]} 6... Nf6 {[%clk
0:02:47.1]} 7. c4 {[%clk 0:02:50.3]} 7... dxc4 {[%clk 0:02:44.9]} 8. e3 {[%clk
0:02:49.7]} 8... O-O-O {[%clk 0:02:33.4]} 9. Qa4 {[%clk 0:02:37.1]} 9... e5
{[%clk 0:02:23.7]} 10. Qxc4 {[%clk 0:01:25.5]} 10... exd4 {[%clk 0:02:19.5]} 11.
O-O {[%clk 0:01:20.2]} 11... Ne5 {[%clk 0:02:17.1]} 12. Qe2 {[%clk 0:01:03.3]}
12... d3 {[%clk 0:02:17.2]} 13. Qd1 {[%clk 0:01:02.6]} 13... Nxf3+ {[%clk
0:02:17.2]} 14. Qxf3 {[%clk 0:01:03.5]} 14... Qxh3 {[%clk 0:02:17.2]} 15. Nd2
{[%clk 0:00:56.9]} 15... h5 {[%clk 0:02:13.5]} 16. Qg2 {[%clk 0:00:47.8]} 16...
Qe6 {[%clk 0:02:13.1]} 17. b3 {[%clk 0:00:44]} 17... h4 {[%clk 0:02:12.8]} 18.
Bb2 {[%clk 0:00:41.9]} 18... hxg3 {[%clk 0:02:12.2]} 19. Qxg3 {[%clk 0:00:41.8]}
19... Bd6 {[%clk 0:02:11.4]} 20. f4 {[%clk 0:00:41.3]} 20... Rh3 {[%clk
0:02:07.6]} 21. Qf2 {[%clk 0:00:36.4]} 21... Ng4 {[%clk 0:02:04.8]} 22. Qg2
{[%clk 0:00:35.4]} 22... Qxe3+ {[%clk 0:02:03.3]} 23. Rf2 {[%clk 0:00:35.9]}
23... Rg3 {[%clk 0:01:58.5]} 0-1

[Event "*** Titled Tuesday Blitz"]
[Site "Chess.com"]
[Date "2021.02.09"]
[Round "10"]
[White "Gloomy_Wanderer"]
[Black "mishanick"]
[Result "0-1"]
[WhiteElo "2734"]
[BlackElo "2928"]
[TimeControl "180+1"]
[EndTime "11:52:53 PST"]
[Termination "mishanick won by resignation"]

1. d4 {[%clk 0:03:00.9]} 1... Nf6 {[%clk 0:02:59.9]} 2. Nf3 {[%clk 0:03:00.8]}
2... d5 {[%clk 0:03:00.2]} 3. c4 {[%clk 0:03:00.9]} 3... e6 {[%clk 0:03:00.3]}
4. g3 {[%clk 0:03:01.1]} 4... Be7 {[%clk 0:02:59.4]} 5. Bg2 {[%clk 0:03:01.2]}
5... O-O {[%clk 0:02:59.3]} 6. O-O {[%clk 0:03:01.3]} 6... Nbd7 {[%clk
0:02:59.9]} 7. Qc2 {[%clk 0:02:59.1]} 7... c6 {[%clk 0:03:00]} 8. Nbd2 {[%clk
0:02:59.4]} 8... b6 {[%clk 0:03:00.6]} 9. e4 {[%clk 0:02:59.7]} 9... Ba6 {[%clk
0:03:00.5]} 10. b3 {[%clk 0:02:59.3]} 10... Rc8 {[%clk 0:03:00]} 11. Bb2 {[%clk
0:02:59.2]} 11... c5 {[%clk 0:02:59.8]} 12. exd5 {[%clk 0:02:59.3]} 12... exd5
{[%clk 0:03:00.7]} 13. Rfd1 {[%clk 0:02:59.7]} 13... dxc4 {[%clk 0:02:58.3]} 14.
Nxc4 {[%clk 0:02:55.5]} 14... Re8 {[%clk 0:02:52.7]} 15. d5 {[%clk 0:02:52.9]}
15... b5 {[%clk 0:02:50.2]} 16. Nce5 {[%clk 0:02:52.7]} 16... Bd6 {[%clk
0:02:48.1]} 17. Nc6 {[%clk 0:02:39.7]} 17... Qc7 {[%clk 0:02:43.9]} 18. Qf5
{[%clk 0:02:29.9]} 18... g6 {[%clk 0:02:31.6]} 19. Qg5 {[%clk 0:02:27]} 19...
Ne4 {[%clk 0:02:31.9]} 20. Qh4 {[%clk 0:02:20.7]} 20... Bf8 {[%clk 0:02:23]} 21.
Nfe5 {[%clk 0:02:07.6]} 21... Nxe5 {[%clk 0:02:14.6]} 22. Bxe5 {[%clk
0:01:55.4]} 22... Rxe5 {[%clk 0:01:59.8]} 23. Nxe5 {[%clk 0:01:55.2]} 23... Nxf2
{[%clk 0:01:54.2]} 24. Re1 {[%clk 0:01:24.6]} 24... Bg7 {[%clk 0:01:47.9]} 25.
d6 {[%clk 0:01:14]} 25... Qxd6 {[%clk 0:01:42.8]} 26. Rad1 {[%clk 0:01:12.6]}
26... Nxd1 {[%clk 0:01:40.9]} 0-1

[Event "*** Titled Tuesday Blitz"]
[Site "Chess.com"]
[Date "2021.02.09"]
[Round "10"]
[White "ketster"]
[Black "FontVella8"]
[Result "1-0"]
[WhiteElo "2467"]
[BlackElo "2566"]
[TimeControl "180+1"]
[EndTime "11:52:54 PST"]
[Termination "ketster won by resignation"]

1. d4 {[%clk 0:03:00.9]} 1... d5 {[%clk 0:02:58.3]} 2. c4 {[%clk 0:02:59.4]}
2... c6 {[%clk 0:02:58.5]} 3. Nf3 {[%clk 0:02:58.7]} 3... Nf6 {[%clk 0:02:58.8]}
4. g3 {[%clk 0:02:58.4]} 4... e6 {[%clk 0:02:56]} 5. Bg2 {[%clk 0:02:57.8]} 5...
dxc4 {[%clk 0:02:56.5]} 6. O-O {[%clk 0:02:57.6]} 6... b5 {[%clk 0:02:56.7]} 7.
Ne5 {[%clk 0:02:57.1]} 7... Bb7 {[%clk 0:02:56.8]} 8. a4 {[%clk 0:02:57]} 8...
Qb6 {[%clk 0:02:52.7]} 9. Nc3 {[%clk 0:02:36.2]} 9... Be7 {[%clk 0:02:43.4]} 10.
e4 {[%clk 0:02:35.9]} 10... O-O {[%clk 0:02:38.2]} 11. Be3 {[%clk 0:02:34.6]}
11... Nbd7 {[%clk 0:02:34.4]} 12. d5 {[%clk 0:02:25.3]} 12... Qc7 {[%clk
0:02:33.5]} 13. Nxc6 {[%clk 0:02:19.4]} 13... Bxc6 {[%clk 0:02:29.4]} 14. dxc6
{[%clk 0:02:19.7]} 14... Ne5 {[%clk 0:02:25.8]} 15. axb5 {[%clk 0:02:15.6]}
15... Rfd8 {[%clk 0:02:25.9]} 16. Qe2 {[%clk 0:02:10.9]} 16... Nd3 {[%clk
0:02:20.1]} 17. Ra4 {[%clk 0:02:10.2]} 17... a6 {[%clk 0:02:12.3]} 18. Rxc4
{[%clk 0:02:05.4]} 18... Ne5 {[%clk 0:02:10.7]} 19. b6 {[%clk 0:02:01.6]} 19...
Qd6 {[%clk 0:02:08]} 20. c7 {[%clk 0:01:56]} 20... Re8 {[%clk 0:02:01.8]} 21.
Ra4 {[%clk 0:01:49.8]} 21... Qc6 {[%clk 0:01:58.3]} 22. Rc1 {[%clk 0:01:39.9]}
22... Nfd7 {[%clk 0:01:50.9]} 23. Rxa6 {[%clk 0:01:38.6]} 23... Bc5 {[%clk
0:01:47]} 24. Rxa8 {[%clk 0:01:37]} 24... Rxa8 {[%clk 0:01:44.8]} 25. Nd1 {[%clk
0:01:26.9]} 25... Qxb6 {[%clk 0:01:41.8]} 26. Bxc5 {[%clk 0:01:21]} 26... Nxc5
{[%clk 0:01:40.9]} 27. Qe3 {[%clk 0:01:15.4]} 27... Ned3 {[%clk 0:01:40.9]} 28.
Rc3 {[%clk 0:01:11]} 28... Qd6 {[%clk 0:01:23.1]} 29. e5 {[%clk 0:01:07.4]}
29... Qxc7 {[%clk 0:01:22.1]} 30. Bxa8 {[%clk 0:01:05.2]} 1-0

[Event "*** Titled Tuesday Blitz"]
[Site "Chess.com"]
[Date "2021.02.09"]
[Round "10"]
[White "Cambek64"]
[Black "Balla_Tamas"]
[Result "0-1"]
[WhiteElo "2346"]
[BlackElo "2474"]
[TimeControl "180+1"]
[EndTime "11:53:01 PST"]
[Termination "Balla_Tamas won by resignation"]

1. e4 {[%clk 0:00:42.8]} 1... c5 {[%clk 0:02:31.1]} 2. Nc3 {[%clk 0:00:42.1]}
2... e6 {[%clk 0:02:30.6]} 3. Nf3 {[%clk 0:00:40.9]} 3... a6 {[%clk 0:02:31.1]}
4. d4 {[%clk 0:00:41.1]} 4... cxd4 {[%clk 0:02:31.1]} 5. Nxd4 {[%clk 0:00:42]}
5... Qc7 {[%clk 0:02:31.8]} 6. Bd3 {[%clk 0:00:40.7]} 6... Bc5 {[%clk
0:02:30.7]} 7. Nb3 {[%clk 0:00:40]} 7... Ba7 {[%clk 0:02:30.8]} 8. Qe2 {[%clk
0:00:40.1]} 8... d6 {[%clk 0:02:30.1]} 9. Be3 {[%clk 0:00:40.6]} 9... Nd7 {[%clk
0:02:28.6]} 10. Bxa7 {[%clk 0:00:39.1]} 10... Rxa7 {[%clk 0:02:28.7]} 11. a4
{[%clk 0:00:38.4]} 11... Ngf6 {[%clk 0:02:24.7]} 12. O-O {[%clk 0:00:39]} 12...
e5 {[%clk 0:02:24.6]} 13. f4 {[%clk 0:00:39.7]} 13... exf4 {[%clk 0:02:24.2]}
14. Nd5 {[%clk 0:00:37.2]} 14... Nxd5 {[%clk 0:02:23]} 15. exd5+ {[%clk
0:00:37.7]} 15... Ne5 {[%clk 0:02:23.2]} 16. Rxf4 {[%clk 0:00:36.5]} 16... O-O
{[%clk 0:02:23.3]} 17. Qe4 {[%clk 0:00:29.6]} 17... f5 {[%clk 0:02:15.6]} 18.
Qd4 {[%clk 0:00:28.9]} 18... b6 {[%clk 0:02:15.6]} 19. a5 {[%clk 0:00:28.1]}
19... b5 {[%clk 0:02:12.7]} 20. Qb6 {[%clk 0:00:25.9]} 20... Rb7 {[%clk
0:01:57.8]} 21. Qxa6 {[%clk 0:00:18.7]} 21... Rb8 {[%clk 0:01:57.5]} 22. Nd4
{[%clk 0:00:15.7]} 22... Bxa6 {[%clk 0:01:54.3]} 0-1

[Event "*** Titled Tuesday Blitz"]
[Site "Chess.com"]
[Date "2021.02.09"]
[Round "10"]
[White "shaheus"]
[Black "lamomiablanca"]
[Result "1-0"]
[WhiteElo "2403"]
[BlackElo "2272"]
[TimeControl "180+1"]
[EndTime "11:53:06 PST"]
[Termination "shaheus won by resignation"]

1. e4 {[%clk 0:03:00.9]} 1... c5 {[%clk 0:02:59.4]} 2. Nf3 {[%clk 0:03:01]} 2...
Nc6 {[%clk 0:02:59]} 3. c3 {[%clk 0:03:01.4]} 3... Nf6 {[%clk 0:02:55.2]} 4. e5
{[%clk 0:03:01.3]} 4... Nd5 {[%clk 0:02:55.5]} 5. d4 {[%clk 0:03:01.2]} 5...
cxd4 {[%clk 0:02:53.8]} 6. cxd4 {[%clk 0:03:01.4]} 6... d6 {[%clk 0:02:54.1]} 7.
Nc3 {[%clk 0:03:00.9]} 7... Nxc3 {[%clk 0:02:43.9]} 8. bxc3 {[%clk 0:03:00.2]}
8... dxe5 {[%clk 0:02:39.2]} 9. d5 {[%clk 0:03:00]} 9... Nb8 {[%clk 0:02:01.2]}
10. Nxe5 {[%clk 0:02:55]} 10... Nd7 {[%clk 0:02:01.4]} 11. Bb5 {[%clk
0:02:19.6]} 11... Qc7 {[%clk 0:01:55]} 12. Nxd7 {[%clk 0:01:32.8]} 12... Bxd7
{[%clk 0:01:53]} 13. Bxd7+ {[%clk 0:01:30.9]} 13... Qxd7 {[%clk 0:01:53.9]} 14.
O-O {[%clk 0:01:30.8]} 14... g6 {[%clk 0:01:52.2]} 15. Qd4 {[%clk 0:01:30.2]}
15... f6 {[%clk 0:01:40.8]} 16. Re1 {[%clk 0:01:28.7]} 16... Kf7 {[%clk
0:01:39.1]} 17. Re6 {[%clk 0:01:11.2]} 17... Rd8 {[%clk 0:01:27.3]} 18. Ba3
{[%clk 0:01:09.9]} 18... Bg7 {[%clk 0:01:25.5]} 19. Rxe7+ {[%clk 0:01:03.7]}
19... Qxe7 {[%clk 0:01:20.4]} 20. Bxe7 {[%clk 0:01:03.5]} 20... Kxe7 {[%clk
0:01:21.3]} 21. Re1+ {[%clk 0:01:02.1]} 21... Kf7 {[%clk 0:01:19.1]} 22. d6
{[%clk 0:00:55.2]} 22... Rd7 {[%clk 0:01:18]} 23. Qd5+ {[%clk 0:00:55.2]} 23...
Kf8 {[%clk 0:01:17.2]} 24. Qe6 {[%clk 0:00:51]} 24... Rd8 {[%clk 0:01:14.7]} 25.
Qe7+ {[%clk 0:00:49.4]} 1-0

[Event "*** Titled Tuesday Blitz"]
[Site "Chess.com"]
[Date "2021.02.09"]
[Round "10"]
[White "stasiek18"]
[Black "Taktikmonster"]
[Result "1-0"]
[WhiteElo "2375"]
[BlackElo "2276"]
[TimeControl "180+1"]
[EndTime "11:53:09 PST"]
[Termination "stasiek18 won by resignation"]

1. d4 {[%clk 0:03:00.9]} 1... Nf6 {[%clk 0:02:58.4]} 2. Bg5 {[%clk 0:03:00]}
2... Ne4 {[%clk 0:02:58]} 3. h4 {[%clk 0:02:59]} 3... c5 {[%clk 0:02:57.4]} 4.
d5 {[%clk 0:02:58.4]} 4... Qb6 {[%clk 0:02:44.7]} 5. Nd2 {[%clk 0:02:58.1]} 5...
Nxd2 {[%clk 0:02:40.3]} 6. Bxd2 {[%clk 0:02:47.5]} 6... Qxb2 {[%clk 0:02:40.3]}
7. e4 {[%clk 0:02:46.5]} 7... d6 {[%clk 0:02:34.4]} 8. Rb1 {[%clk 0:02:17.1]}
8... Qxa2 {[%clk 0:02:06.7]} 9. Bb5+ {[%clk 0:02:16.1]} 9... Bd7 {[%clk
0:02:02.7]} 10. Ne2 {[%clk 0:02:07.4]} 10... Bxb5 {[%clk 0:01:52.1]} 11. Rxb5
{[%clk 0:02:08.3]} 11... Qa6 {[%clk 0:01:52]} 12. c4 {[%clk 0:02:07.9]} 12...
Nd7 {[%clk 0:01:51.7]} 13. O-O {[%clk 0:01:59.2]} 13... Nb6 {[%clk 0:01:44.6]}
14. Qb3 {[%clk 0:01:55]} 14... g6 {[%clk 0:01:32]} 15. Bc3 {[%clk 0:01:49.5]}
15... Rg8 {[%clk 0:01:27]} 16. Ra1 {[%clk 0:01:48.3]} 16... Rb8 {[%clk
0:01:12.8]} 17. Rxa6 {[%clk 0:01:38.3]} 17... bxa6 {[%clk 0:01:13.7]} 18. Ra5
{[%clk 0:01:38.3]} 18... Bh6 {[%clk 0:01:06]} 19. Rxa6 {[%clk 0:01:32.1]} 19...
Nd7 {[%clk 0:01:05.8]} 20. Qa4 {[%clk 0:01:25.7]} 20... g5 {[%clk 0:00:58.8]}
21. Rxa7 {[%clk 0:01:24]} 21... Rd8 {[%clk 0:00:57.1]} 22. Ra8 {[%clk
0:01:10.7]} 22... e5 {[%clk 0:00:48.4]} 23. Rxd8+ {[%clk 0:01:08.3]} 23... Kxd8
{[%clk 0:00:49.3]} 24. Qa8+ {[%clk 0:01:08.5]} 1-0

[Event "*** Titled Tuesday Blitz"]
[Site "Chess.com"]
[Date "2021.02.09"]
[Round "10"]
[White "ehrenfeld"]
[Black "Sanyura"]
[Result "0-1"]
[WhiteElo "2523"]
[BlackElo "2656"]
[TimeControl "180+1"]
[EndTime "11:53:14 PST"]
[Termination "Sanyura won by resignation"]

1. e4 {[%clk 0:03:00.9]} 1... c5 {[%clk 0:02:49.1]} 2. Nf3 {[%clk 0:03:00]} 2...
e6 {[%clk 0:02:48.7]} 3. d3 {[%clk 0:02:59.5]} 3... Nc6 {[%clk 0:02:40.3]} 4. g3
{[%clk 0:02:59.2]} 4... g6 {[%clk 0:02:40.7]} 5. Bg2 {[%clk 0:02:59.2]} 5... Bg7
{[%clk 0:02:41.2]} 6. O-O {[%clk 0:02:57.7]} 6... Nge7 {[%clk 0:02:41.6]} 7. c3
{[%clk 0:02:52.8]} 7... d5 {[%clk 0:02:41.7]} 8. Qe2 {[%clk 0:02:51]} 8... b6
{[%clk 0:02:38.9]} 9. Re1 {[%clk 0:02:49.1]} 9... Ba6 {[%clk 0:02:36.4]} 10. e5
{[%clk 0:02:47.7]} 10... h6 {[%clk 0:02:33.2]} 11. h4 {[%clk 0:02:47.1]} 11...
Qc7 {[%clk 0:02:32.2]} 12. a4 {[%clk 0:02:43.7]} 12... g5 {[%clk 0:02:32.3]} 13.
hxg5 {[%clk 0:02:40.3]} 13... hxg5 {[%clk 0:02:33.2]} 14. Bxg5 {[%clk
0:02:39.9]} 14... Ng6 {[%clk 0:02:33.5]} 15. Bf6 {[%clk 0:02:33.3]} 15... Bxf6
{[%clk 0:02:22.6]} 16. exf6 {[%clk 0:02:33]} 16... O-O-O {[%clk 0:02:23.3]} 17.
Na3 {[%clk 0:02:32.4]} 17... Rdg8 {[%clk 0:02:17.5]} 18. Nb5 {[%clk 0:02:29.7]}
18... Qd8 {[%clk 0:02:16.5]} 19. b4 {[%clk 0:02:24.6]} 19... Qxf6 {[%clk
0:01:40.9]} 20. bxc5 {[%clk 0:02:23.6]} 20... Nf4 {[%clk 0:01:35.1]} 21. gxf4
{[%clk 0:02:05.4]} 21... Qxf4 {[%clk 0:01:36]} 22. Nd6+ {[%clk 0:01:46.9]} 22...
Kb8 {[%clk 0:01:35.9]} 23. Qe3 {[%clk 0:00:56.7]} 23... Qg4 {[%clk 0:01:28.4]}
24. Ng5 {[%clk 0:00:45.3]} 24... Rxg5 {[%clk 0:01:23]} 25. Qg3 {[%clk
0:00:45.3]} 25... Qh5 {[%clk 0:01:12.1]} 0-1

[Event "*** Titled Tuesday Blitz"]
[Site "Chess.com"]
[Date "2021.02.09"]
[Round "10"]
[White "QuintilianoR"]
[Black "KyronGriffith"]
[Result "0-1"]
[WhiteElo "2676"]
[BlackElo "2549"]
[TimeControl "180+1"]
[EndTime "11:53:15 PST"]
[Termination "KyronGriffith won by checkmate"]

1. d4 {[%clk 0:03:00.9]} 1... Nf6 {[%clk 0:03:00]} 2. c4 {[%clk 0:03:00.9]} 2...
g6 {[%clk 0:03:00.6]} 3. Nf3 {[%clk 0:03:00.9]} 3... Bg7 {[%clk 0:03:01.2]} 4.
Nc3 {[%clk 0:03:01.3]} 4... O-O {[%clk 0:03:01.6]} 5. Bg5 {[%clk 0:03:00.2]}
5... d6 {[%clk 0:03:00.5]} 6. e3 {[%clk 0:02:59.5]} 6... h6 {[%clk 0:02:59.6]}
7. Bh4 {[%clk 0:02:58.9]} 7... g5 {[%clk 0:02:58.4]} 8. Bg3 {[%clk 0:02:58.8]}
8... Nh5 {[%clk 0:02:58.9]} 9. Bd3 {[%clk 0:02:58.5]} 9... Nxg3 {[%clk
0:02:54.5]} 10. hxg3 {[%clk 0:02:58.4]} 10... c5 {[%clk 0:02:55]} 11. Nxg5
{[%clk 0:02:23.1]} 11... cxd4 {[%clk 0:02:55.4]} 12. exd4 {[%clk 0:02:16.4]}
12... e5 {[%clk 0:02:55.8]} 13. Nf3 {[%clk 0:02:03.5]} 13... f5 {[%clk
0:02:52.3]} 14. Bc2 {[%clk 0:01:33.5]} 14... Nc6 {[%clk 0:02:47.7]} 15. d5
{[%clk 0:01:15.9]} 15... Nb4 {[%clk 0:02:46.3]} 16. a3 {[%clk 0:01:05]} 16...
Nxc2+ {[%clk 0:02:44.6]} 17. Qxc2 {[%clk 0:01:05.9]} 17... Bd7 {[%clk
0:02:33.8]} 18. O-O {[%clk 0:00:43.1]} 18... Rc8 {[%clk 0:02:33.1]} 19. Qb3
{[%clk 0:00:42.8]} 19... b6 {[%clk 0:02:32.3]} 20. Nb5 {[%clk 0:00:39.3]} 20...
Bxb5 {[%clk 0:02:27.9]} 21. Qxb5 {[%clk 0:00:33.9]} 21... e4 {[%clk 0:02:24.4]}
22. Nh4 {[%clk 0:00:30.9]} 22... f4 {[%clk 0:02:21.9]} 23. Ng6 {[%clk
0:00:28.1]} 23... fxg3 {[%clk 0:02:15.5]} 24. Nxf8 {[%clk 0:00:27.9]} 24... Qxf8
{[%clk 0:02:12]} 25. fxg3 {[%clk 0:00:24]} 25... Bd4+ {[%clk 0:02:09.9]} 26. Kh2
{[%clk 0:00:23.8]} 26... Qe7 {[%clk 0:01:53.9]} 27. Qb3 {[%clk 0:00:13.9]} 27...
Qe5 {[%clk 0:01:44.6]} 28. Rae1 {[%clk 0:00:13.2]} 28... Qh5# {[%clk 0:01:43.8]}
0-1

[Event "*** Titled Tuesday Blitz"]
[Site "Chess.com"]
[Date "2021.02.09"]
[Round "10"]
[White "JQuiroga18"]
[Black "ridnani2021"]
[Result "1-0"]
[WhiteElo "2417"]
[BlackElo "2334"]
[TimeControl "180+1"]
[EndTime "11:53:31 PST"]
[Termination "JQuiroga18 won by checkmate"]

1. e4 {[%clk 0:03:00.9]} 1... c5 {[%clk 0:02:59.6]} 2. Nf3 {[%clk 0:03:00.6]}
2... d6 {[%clk 0:02:59.9]} 3. d4 {[%clk 0:03:00]} 3... cxd4 {[%clk 0:03:00.8]}
4. Nxd4 {[%clk 0:03:00.4]} 4... Nf6 {[%clk 0:03:01.4]} 5. Nc3 {[%clk 0:03:00.7]}
5... a6 {[%clk 0:03:02.1]} 6. g3 {[%clk 0:03:00.8]} 6... e5 {[%clk 0:03:01.9]}
7. Nde2 {[%clk 0:03:00.4]} 7... Be7 {[%clk 0:03:01.9]} 8. Bg2 {[%clk 0:02:59.3]}
8... O-O {[%clk 0:03:01.9]} 9. a4 {[%clk 0:02:59.4]} 9... Nc6 {[%clk 0:02:59.4]}
10. O-O {[%clk 0:02:56.9]} 10... Be6 {[%clk 0:02:59.3]} 11. h3 {[%clk
0:02:43.4]} 11... Rc8 {[%clk 0:02:55.9]} 12. g4 {[%clk 0:02:42.2]} 12... Na5
{[%clk 0:02:55]} 13. Ng3 {[%clk 0:02:39.1]} 13... g6 {[%clk 0:02:51.4]} 14. Nd5
{[%clk 0:02:31]} 14... Bxd5 {[%clk 0:02:47.7]} 15. exd5 {[%clk 0:02:31.9]} 15...
Nc4 {[%clk 0:02:47.2]} 16. b3 {[%clk 0:02:29.5]} 16... Nb6 {[%clk 0:02:46.3]}
17. c4 {[%clk 0:02:28.3]} 17... Nbd7 {[%clk 0:02:45.2]} 18. Bh6 {[%clk
0:02:21.3]} 18... Re8 {[%clk 0:02:42.9]} 19. g5 {[%clk 0:02:19.7]} 19... Nxd5
{[%clk 0:02:17.7]} 20. Bxd5 {[%clk 0:02:16.7]} 20... Bxg5 {[%clk 0:02:17.5]} 21.
Bxg5 {[%clk 0:02:04.2]} 21... Qxg5 {[%clk 0:02:18.4]} 22. Qg4 {[%clk 0:02:01.9]}
22... Qe7 {[%clk 0:02:11]} 23. Nf5 {[%clk 0:01:55.5]} 23... Qf8 {[%clk
0:02:03.4]} 24. Qg5 {[%clk 0:01:39.4]} 24... Nb6 {[%clk 0:01:35.1]} 25. Nh6+
{[%clk 0:01:33.1]} 25... Kg7 {[%clk 0:01:35]} 26. Bxf7 {[%clk 0:01:29.8]} 26...
Re7 {[%clk 0:01:34.6]} 27. f4 {[%clk 0:00:53.4]} 27... e4 {[%clk 0:01:28.3]} 28.
f5 {[%clk 0:00:35]} 28... Rxf7 {[%clk 0:01:20.1]} 29. fxg6 {[%clk 0:00:35.2]}
29... Rxf1+ {[%clk 0:01:19.6]} 30. Rxf1 {[%clk 0:00:36.1]} 30... Qd8 {[%clk
0:01:15.6]} 31. Rf7+ {[%clk 0:00:35.3]} 31... Kh8 {[%clk 0:01:13.4]} 32. Rxh7#
{[%clk 0:00:35.4]} 1-0

[Event "*** Titled Tuesday Blitz"]
[Site "Chess.com"]
[Date "2021.02.09"]
[Round "10"]
[White "CoachHakia"]
[Black "NaciSAN"]
[Result "0-1"]
[WhiteElo "2159"]
[BlackElo "2306"]
[TimeControl "180+1"]
[EndTime "11:53:33 PST"]
[Termination "NaciSAN won by resignation"]

1. d4 {[%clk 0:03:00.9]} 1... Nf6 {[%clk 0:02:59.7]} 2. Bg5 {[%clk 0:03:00.6]}
2... g6 {[%clk 0:02:59.7]} 3. Bxf6 {[%clk 0:02:58.9]} 3... exf6 {[%clk
0:03:00.6]} 4. g3 {[%clk 0:02:59.5]} 4... f5 {[%clk 0:02:59.8]} 5. Bg2 {[%clk
0:03:00.1]} 5... h5 {[%clk 0:02:58.9]} 6. h4 {[%clk 0:02:59.7]} 6... Bh6 {[%clk
0:02:58.8]} 7. e3 {[%clk 0:02:59.9]} 7... O-O {[%clk 0:02:58.7]} 8. Ne2 {[%clk
0:03:00.4]} 8... d6 {[%clk 0:02:59]} 9. Nd2 {[%clk 0:03:00.2]} 9... c6 {[%clk
0:02:58.4]} 10. c4 {[%clk 0:03:00.4]} 10... a5 {[%clk 0:02:56]} 11. O-O {[%clk
0:02:59.7]} 11... Nd7 {[%clk 0:02:56.1]} 12. Qc2 {[%clk 0:02:57]} 12... Nf6
{[%clk 0:02:55.8]} 13. a3 {[%clk 0:02:53.7]} 13... Ng4 {[%clk 0:02:54.6]} 14.
Qd3 {[%clk 0:02:49.5]} 14... Re8 {[%clk 0:02:53.7]} 15. Nf4 {[%clk 0:02:48.4]}
15... a4 {[%clk 0:02:40.5]} 16. Rfe1 {[%clk 0:02:18.7]} 16... Bd7 {[%clk
0:02:25.2]} 17. Rad1 {[%clk 0:02:10.3]} 17... Qa5 {[%clk 0:02:13.3]} 18. d5
{[%clk 0:01:52.6]} 18... c5 {[%clk 0:02:12.1]} 19. Re2 {[%clk 0:01:39.3]} 19...
b5 {[%clk 0:02:12]} 20. Rde1 {[%clk 0:01:35.8]} 20... bxc4 {[%clk 0:02:07]} 21.
Nxc4 {[%clk 0:01:36.7]} 21... Qa6 {[%clk 0:02:06.2]} 22. Rc2 {[%clk 0:00:57.9]}
22... Bb5 {[%clk 0:02:05.4]} 23. Bf1 {[%clk 0:00:57.3]} 23... Ne5 {[%clk
0:02:04.4]} 24. Qc3 {[%clk 0:00:55.9]} 24... Bxf4 {[%clk 0:01:56.7]} 25. exf4
{[%clk 0:00:38.5]} 25... Nf3+ {[%clk 0:01:54.4]} 26. Qxf3 {[%clk 0:00:38]} 26...
Rxe1 {[%clk 0:01:54.9]} 27. Qc3 {[%clk 0:00:25.8]} 27... Bxc4 {[%clk 0:01:48.7]}
28. Qxc4 {[%clk 0:00:23.8]} 28... Qxc4 {[%clk 0:01:48.4]} 29. Rxc4 {[%clk
0:00:22.6]} 29... Rb1 {[%clk 0:01:37.9]} 30. Rc2 {[%clk 0:00:22.3]} 30... Rb8
{[%clk 0:01:37.1]} 31. Re2 {[%clk 0:00:22.1]} 31... R8xb2 {[%clk 0:01:35.8]} 32.
Re8+ {[%clk 0:00:22.1]} 32... Kg7 {[%clk 0:01:35.5]} 0-1

[Event "*** Titled Tuesday Blitz"]
[Site "Chess.com"]
[Date "2021.02.09"]
[Round "10"]
[White "MVM2008"]
[Black "jorquerino"]
[Result "0-1"]
[WhiteElo "2121"]
[BlackElo "2286"]
[TimeControl "180+1"]
[EndTime "11:53:33 PST"]
[Termination "jorquerino won on time"]

1. e4 {[%clk 0:03:00.9]} 1... d5 {[%clk 0:02:59.8]} 2. exd5 {[%clk 0:03:00.8]}
2... Nf6 {[%clk 0:03:00.2]} 3. Nf3 {[%clk 0:03:00.1]} 3... Nxd5 {[%clk
0:02:59.2]} 4. c4 {[%clk 0:02:57.2]} 4... Nb6 {[%clk 0:02:58.8]} 5. d4 {[%clk
0:02:57.1]} 5... g6 {[%clk 0:02:59.2]} 6. Nc3 {[%clk 0:02:54.1]} 6... Bg7 {[%clk
0:02:59.3]} 7. c5 {[%clk 0:02:52.2]} 7... Nd5 {[%clk 0:02:58.8]} 8. Bc4 {[%clk
0:02:52.4]} 8... c6 {[%clk 0:02:57.3]} 9. Nxd5 {[%clk 0:02:42.7]} 9... cxd5
{[%clk 0:02:56.7]} 10. Bb5+ {[%clk 0:02:42.8]} 10... Nc6 {[%clk 0:02:38.5]} 11.
Bf4 {[%clk 0:02:39.1]} 11... Qa5+ {[%clk 0:02:36.6]} 12. Bd2 {[%clk 0:01:48.7]}
12... Qxb5 {[%clk 0:02:35.7]} 13. Bc3 {[%clk 0:01:29.3]} 13... O-O {[%clk
0:02:30.3]} 14. Kd2 {[%clk 0:00:44.7]} 14... Bh6+ {[%clk 0:02:18.4]} 15. Ke1
{[%clk 0:00:26.6]} 15... Re8 {[%clk 0:02:03.1]} 16. b3 {[%clk 0:00:10.8]} 16...
Bg4 {[%clk 0:01:56.5]} 17. a4 {[%clk 0:00:07.3]} 17... Qa6 {[%clk 0:01:54]} 18.
b4 {[%clk 0:00:06]} 18... Qc4 {[%clk 0:01:53.7]} 19. Qc2 {[%clk 0:00:01.9]}
19... Bxf3 {[%clk 0:01:43.3]} 20. gxf3 {[%clk 0:00:02.8]} 20... Nxd4 {[%clk
0:01:42.8]} 21. Qb2 {[%clk 0:00:02.1]} 21... Nxf3+ {[%clk 0:01:32.7]} 22. Kd1
{[%clk 0:00:02.3]} 22... Qd3+ {[%clk 0:01:33.1]} 23. Bd2 {[%clk 0:00:01.2]}
23... Bxd2 {[%clk 0:01:28.4]} 0-1